[Event "Early-Titled-Tuesday-Blitz-March-19-2024"]
[Site "Chess.com"]
[Date "2024.03.19"]
[Round "4"]
[White "AccioChess"]
[Black "Iskusnyh"]
[Result "1-0"]
[WhiteElo "2454"]
[BlackElo "2627"]
[TimeControl "180+1"]
[EndTime "8:39:41 PDT"]
[Termination "AccioChess won on time"]

1. e4 {[%clk 0:03:00.9]} 1... e6 {[%clk 0:02:56.9]} 2. d4 {[%clk 0:03:00.5]}
2... d5 {[%clk 0:02:56]} 3. Nc3 {[%clk 0:03:00.6]} 3... Nf6 {[%clk 0:02:55.2]}
4. e5 {[%clk 0:02:59.6]} 4... Nfd7 {[%clk 0:02:53.2]} 5. f4 {[%clk 0:02:59.7]}
5... c5 {[%clk 0:02:51.7]} 6. Nf3 {[%clk 0:03:00.6]} 6... Nc6 {[%clk 0:02:48.1]}
7. Be3 {[%clk 0:03:00.1]} 7... Rb8 {[%clk 0:02:47.1]} 8. Qd2 {[%clk 0:02:59.1]}
8... Qa5 {[%clk 0:02:45.6]} 9. Be2 {[%clk 0:02:52]} 9... b5 {[%clk 0:02:45]} 10.
O-O {[%clk 0:02:51]} 10... b4 {[%clk 0:02:44.6]} 11. Nd1 {[%clk 0:02:50.7]}
11... cxd4 {[%clk 0:02:41.6]} 12. Nxd4 {[%clk 0:02:51.6]} 12... Nxd4 {[%clk
0:02:40]} 13. Bxd4 {[%clk 0:02:51.5]} 13... Bc5 {[%clk 0:02:40]} 14. Ne3 {[%clk
0:02:51]} 14... O-O {[%clk 0:01:54.9]} 15. Rad1 {[%clk 0:02:48.8]} 15... Ba6
{[%clk 0:01:45.9]} 16. Bxa6 {[%clk 0:02:33.7]} 16... Qxa6 {[%clk 0:01:44.1]} 17.
Bxc5 {[%clk 0:02:33.4]} 17... Nxc5 {[%clk 0:01:43.6]} 18. f5 {[%clk 0:02:33.4]}
18... Ne4 {[%clk 0:01:40.7]} 19. Qe1 {[%clk 0:02:25.4]} 19... exf5 {[%clk
0:01:36.2]} 20. Nxf5 {[%clk 0:02:20]} 20... Qe6 {[%clk 0:01:32]} 21. Rxd5 {[%clk
0:02:16.1]} 21... Ng5 {[%clk 0:01:12.2]} 22. Rd6 {[%clk 0:01:49.6]} 22... Qc4
{[%clk 0:00:52.9]} 23. Qg3 {[%clk 0:01:48.5]} 23... h6 {[%clk 0:00:36.3]} 24.
Nxh6+ {[%clk 0:01:22.5]} 24... gxh6 {[%clk 0:00:23.4]} 25. Rxh6 {[%clk
0:01:23.4]} 25... Qd4+ {[%clk 0:00:18.8]} 26. Kh1 {[%clk 0:01:15]} 26... Qd2
{[%clk 0:00:18.7]} 27. Rh5 {[%clk 0:00:50.3]} 27... Rb6 {[%clk 0:00:18.4]} 28.
Rxg5+ {[%clk 0:00:49.5]} 28... Kh7 {[%clk 0:00:18.6]} 29. Rh5+ {[%clk
0:00:35.8]} 29... Rh6 {[%clk 0:00:17.4]} 30. Rxh6+ {[%clk 0:00:35.7]} 30... Kxh6
{[%clk 0:00:14.8]} 31. Qh3+ {[%clk 0:00:35.6]} 31... Kg7 {[%clk 0:00:14.4]} 32.
Qg4+ {[%clk 0:00:35.5]} 32... Kh7 {[%clk 0:00:14.2]} 33. Qf5+ {[%clk 0:00:35]}
33... Kg8 {[%clk 0:00:13.5]} 34. h3 {[%clk 0:00:33.6]} 34... Qe2 {[%clk
0:00:02.6]} 35. Rf4 {[%clk 0:00:30.2]} 1-0

[Event "Early-Titled-Tuesday-Blitz-March-19-2024"]
[Site "Chess.com"]
[Date "2024.03.19"]
[Round "4"]
[White "davidarenas1224"]
[Black "Josgar05"]
[Result "0-1"]
[WhiteElo "2519"]
[BlackElo "2347"]
[TimeControl "180+1"]
[EndTime "8:39:42 PDT"]
[Termination "Josgar05 won on time"]

1. e4 {[%clk 0:03:00.9]} 1... e6 {[%clk 0:02:51.9]} 2. d4 {[%clk 0:02:59.9]}
2... d5 {[%clk 0:02:52.5]} 3. Nc3 {[%clk 0:03:00]} 3... Nf6 {[%clk 0:02:48.6]}
4. Bg5 {[%clk 0:03:00.1]} 4... dxe4 {[%clk 0:02:46.7]} 5. Nxe4 {[%clk
0:02:59.4]} 5... Be7 {[%clk 0:02:46.8]} 6. Bxf6 {[%clk 0:02:58.6]} 6... gxf6
{[%clk 0:02:44.6]} 7. Nf3 {[%clk 0:02:58.8]} 7... Nd7 {[%clk 0:02:30.4]} 8. g3
{[%clk 0:02:54.6]} 8... b6 {[%clk 0:02:29.6]} 9. Bg2 {[%clk 0:02:52.8]} 9... Bb7
{[%clk 0:02:29.2]} 10. Qe2 {[%clk 0:02:49.4]} 10... c5 {[%clk 0:02:24.1]} 11.
O-O {[%clk 0:02:23.3]} 11... Qc7 {[%clk 0:02:19.9]} 12. Rad1 {[%clk 0:02:15.6]}
12... O-O {[%clk 0:02:12.5]} 13. c3 {[%clk 0:02:02.5]} 13... f5 {[%clk
0:02:10.2]} 14. Ned2 {[%clk 0:02:00.3]} 14... Bf6 {[%clk 0:02:09.8]} 15. Nb3
{[%clk 0:01:52.4]} 15... Rad8 {[%clk 0:02:03]} 16. dxc5 {[%clk 0:01:42.4]} 16...
Nxc5 {[%clk 0:02:01.9]} 17. Nxc5 {[%clk 0:01:43]} 17... Qxc5 {[%clk 0:02:01.4]}
18. Nd2 {[%clk 0:01:17]} 18... Bxg2 {[%clk 0:01:48.5]} 19. Kxg2 {[%clk
0:01:17.9]} 19... a5 {[%clk 0:01:43.6]} 20. a4 {[%clk 0:01:03]} 20... Qc6+
{[%clk 0:01:42.3]} 21. Nf3 {[%clk 0:00:59.3]} 21... Qxa4 {[%clk 0:01:41.3]} 22.
h4 {[%clk 0:00:46.5]} 22... Qc6 {[%clk 0:01:23.8]} 23. Kg1 {[%clk 0:00:40.8]}
23... a4 {[%clk 0:01:16.6]} 24. Ng5 {[%clk 0:00:23.9]} 24... h6 {[%clk
0:01:00.5]} 25. Nh3 {[%clk 0:00:21.6]} 25... Qe4 {[%clk 0:00:50.2]} 26. Qh5
{[%clk 0:00:20.2]} 26... Qg4 {[%clk 0:00:44.9]} 27. Qxg4+ {[%clk 0:00:16.9]}
27... fxg4 {[%clk 0:00:45.8]} 28. Nf4 {[%clk 0:00:17.2]} 28... a3 {[%clk
0:00:41.2]} 29. bxa3 {[%clk 0:00:16.4]} 29... Bxc3 {[%clk 0:00:41.4]} 30. Ne2
{[%clk 0:00:10]} 30... Bb2 {[%clk 0:00:40.1]} 31. Rb1 {[%clk 0:00:08]} 31... Rd2
{[%clk 0:00:37.6]} 32. Nf4 {[%clk 0:00:04.5]} 32... Rc8 {[%clk 0:00:35.9]} 33.
Ng2 {[%clk 0:00:03.7]} 33... Rc6 {[%clk 0:00:33.1]} 34. Ne3 {[%clk 0:00:03.5]}
34... f5 {[%clk 0:00:32.8]} 35. Rfd1 {[%clk 0:00:01.6]} 35... Rxd1+ {[%clk
0:00:32.4]} 36. Rxd1 {[%clk 0:00:00.7]} 36... Bxa3 {[%clk 0:00:32.3]} 0-1

[Event "Early-Titled-Tuesday-Blitz-March-19-2024"]
[Site "Chess.com"]
[Date "2024.03.19"]
[Round "4"]
[White "Orest_Vovk"]
[Black "Pragmatist237"]
[Result "1-0"]
[WhiteElo "2531"]
[BlackElo "2239"]
[TimeControl "180+1"]
[EndTime "8:39:42 PDT"]
[Termination "Orest_Vovk won by resignation"]

1. g4 {[%clk 0:02:54.4]} 1... d5 {[%clk 0:02:58.2]} 2. h3 {[%clk 0:02:52.4]}
2... c6 {[%clk 0:02:57.8]} 3. Bg2 {[%clk 0:02:52.8]} 3... e5 {[%clk 0:02:57.9]}
4. d4 {[%clk 0:02:52.4]} 4... e4 {[%clk 0:02:58.1]} 5. c4 {[%clk 0:02:52.9]}
5... Be6 {[%clk 0:02:54.2]} 6. Nc3 {[%clk 0:02:53.3]} 6... Bb4 {[%clk
0:02:52.7]} 7. Qb3 {[%clk 0:02:53.1]} 7... Qb6 {[%clk 0:02:40.5]} 8. c5 {[%clk
0:02:49.3]} 8... Bxc3+ {[%clk 0:02:39.8]} 9. bxc3 {[%clk 0:02:47.3]} 9... Qc7
{[%clk 0:02:25.8]} 10. Bf4 {[%clk 0:02:41.9]} 10... Qd7 {[%clk 0:02:20]} 11. Rb1
{[%clk 0:02:39.4]} 11... h5 {[%clk 0:01:56.2]} 12. Qxb7 {[%clk 0:02:32.5]} 12...
Qxb7 {[%clk 0:01:56.4]} 13. Rxb7 {[%clk 0:02:33.2]} 13... Nd7 {[%clk 0:01:55.9]}
14. g5 {[%clk 0:02:33.3]} 14... Ne7 {[%clk 0:01:25.6]} 15. e3 {[%clk 0:02:32.1]}
15... O-O {[%clk 0:01:20.7]} 16. Bd6 {[%clk 0:02:30.6]} 16... Rfe8 {[%clk
0:01:20.3]} 17. Ne2 {[%clk 0:02:29]} 17... Nf5 {[%clk 0:01:11.5]} 18. Nf4 {[%clk
0:02:00.4]} 18... Nxd6 {[%clk 0:00:59.7]} 19. cxd6 {[%clk 0:01:59.9]} 19... Reb8
{[%clk 0:00:37.7]} 20. Rxb8+ {[%clk 0:01:43.9]} 20... Rxb8 {[%clk 0:00:38.6]}
21. O-O {[%clk 0:01:44]} 21... h4 {[%clk 0:00:33.4]} 22. c4 {[%clk 0:01:43.2]}
22... dxc4 {[%clk 0:00:21.9]} 23. Bxe4 {[%clk 0:01:40.2]} 23... Rb2 {[%clk
0:00:15.7]} 24. Bxc6 {[%clk 0:01:38.5]} 24... Nb8 {[%clk 0:00:13]} 25. d5 {[%clk
0:01:31.3]} 25... Bd7 {[%clk 0:00:10.9]} 26. Rc1 {[%clk 0:01:27.1]} 26... Rb4
{[%clk 0:00:09.1]} 27. a3 {[%clk 0:01:25.3]} 27... Rb6 {[%clk 0:00:08.7]} 28.
Rxc4 {[%clk 0:01:18]} 28... Nxc6 {[%clk 0:00:07.6]} 29. dxc6 {[%clk 0:01:15.9]}
29... Rxc6 {[%clk 0:00:08.2]} 30. Rxc6 {[%clk 0:00:49.9]} 30... Bxc6 {[%clk
0:00:09.1]} 31. Ng2 {[%clk 0:00:50.1]} 31... Kf8 {[%clk 0:00:07.3]} 32. Nxh4
{[%clk 0:00:50]} 32... g6 {[%clk 0:00:07.9]} 33. f3 {[%clk 0:00:40.5]} 33... Ke8
{[%clk 0:00:08.4]} 34. e4 {[%clk 0:00:40.5]} 34... Kd7 {[%clk 0:00:08.9]} 35. e5
{[%clk 0:00:40.6]} 35... Ke6 {[%clk 0:00:09.4]} 36. f4 {[%clk 0:00:40.7]} 36...
Kd5 {[%clk 0:00:08.2]} 37. Kf2 {[%clk 0:00:40.8]} 37... Ke4 {[%clk 0:00:08.5]}
38. Kg3 {[%clk 0:00:40.6]} 38... Ke3 {[%clk 0:00:08.1]} 39. Nxg6 {[%clk
0:00:35.9]} 39... fxg6 {[%clk 0:00:08]} 40. e6 {[%clk 0:00:36.1]} 40... Kd4
{[%clk 0:00:07.5]} 41. d7 {[%clk 0:00:36.2]} 1-0

[Event "Early-Titled-Tuesday-Blitz-March-19-2024"]
[Site "Chess.com"]
[Date "2024.03.19"]
[Round "4"]
[White "Matibar"]
[Black "ragnaroek66"]
[Result "1-0"]
[WhiteElo "2780"]
[BlackElo "2522"]
[TimeControl "180+1"]
[EndTime "8:39:43 PDT"]
[Termination "Matibar won by resignation"]

1. c4 {[%clk 0:02:58.4]} 1... e6 {[%clk 0:02:22.3]} 2. Nf3 {[%clk 0:02:23.6]}
2... d5 {[%clk 0:02:21.7]} 3. e3 {[%clk 0:02:23.7]} 3... Nf6 {[%clk 0:02:20.6]}
4. b3 {[%clk 0:02:22.2]} 4... Bd6 {[%clk 0:02:19.7]} 5. Bb2 {[%clk 0:02:20.4]}
5... O-O {[%clk 0:02:19.9]} 6. Be2 {[%clk 0:02:20.2]} 6... dxc4 {[%clk
0:02:17.2]} 7. bxc4 {[%clk 0:02:18.6]} 7... Re8 {[%clk 0:02:11.8]} 8. d4 {[%clk
0:02:15.2]} 8... b6 {[%clk 0:02:11.2]} 9. O-O {[%clk 0:02:14.7]} 9... Bb7 {[%clk
0:02:11.2]} 10. Nc3 {[%clk 0:02:14.1]} 10... Nbd7 {[%clk 0:02:03.6]} 11. a4
{[%clk 0:02:07.2]} 11... e5 {[%clk 0:02:01.6]} 12. a5 {[%clk 0:02:04.6]} 12...
exd4 {[%clk 0:01:44.9]} 13. exd4 {[%clk 0:02:04.4]} 13... Nf8 {[%clk 0:01:43.7]}
14. a6 {[%clk 0:01:53.8]} 14... Bc6 {[%clk 0:01:41.4]} 15. d5 {[%clk 0:01:52.5]}
15... Bd7 {[%clk 0:01:41.1]} 16. Nd4 {[%clk 0:01:52.2]} 16... Ng6 {[%clk
0:01:39.1]} 17. Ncb5 {[%clk 0:01:50.7]} 17... Bc5 {[%clk 0:01:33]} 18. Nc6
{[%clk 0:01:33.8]} 18... Bxc6 {[%clk 0:01:15.9]} 19. dxc6 {[%clk 0:01:33.6]}
19... Nf4 {[%clk 0:01:16.5]} 20. Bf3 {[%clk 0:01:33.5]} 20... Nd3 {[%clk
0:01:15.1]} 21. Bxf6 {[%clk 0:01:31.4]} 21... gxf6 {[%clk 0:01:16]} 22. Bd5
{[%clk 0:01:25.8]} 22... Ne5 {[%clk 0:01:05.3]} 23. Qh5 {[%clk 0:01:22.3]} 23...
Kh8 {[%clk 0:00:58.6]} 24. Rad1 {[%clk 0:00:59.8]} 24... Qe7 {[%clk 0:00:55.1]}
25. Qf5 {[%clk 0:00:59.1]} 25... Rg8 {[%clk 0:00:53.3]} 26. g3 {[%clk 0:00:43]}
26... Rg5 {[%clk 0:00:49]} 27. Qe4 {[%clk 0:00:39.6]} 27... Rag8 {[%clk
0:00:47.4]} 28. Kh1 {[%clk 0:00:36.6]} 28... Rh5 {[%clk 0:00:39.8]} 29. Kg2
{[%clk 0:00:19.7]} 29... Rg4 {[%clk 0:00:31.9]} 30. Qe2 {[%clk 0:00:19]} 30...
Rh6 {[%clk 0:00:18]} 31. f4 {[%clk 0:00:11.9]} 31... Ng6 {[%clk 0:00:09.3]} 32.
Qxg4 {[%clk 0:00:09.8]} 1-0

[Event "Early-Titled-Tuesday-Blitz-March-19-2024"]
[Site "Chess.com"]
[Date "2024.03.19"]
[Round "4"]
[White "ChessWarrior3"]
[Black "Zurability"]
[Result "1-0"]
[WhiteElo "2488"]
[BlackElo "2708"]
[TimeControl "180+1"]
[EndTime "8:39:44 PDT"]
[Termination "ChessWarrior3 won by checkmate"]

1. b3 {[%clk 0:02:55.7]} 1... a5 {[%clk 0:02:58.5]} 2. h4 {[%clk 0:02:49.1]}
2... a4 {[%clk 0:02:58.3]} 3. Ba3 {[%clk 0:02:45.7]} 3... Nf6 {[%clk 0:02:56.3]}
4. h5 {[%clk 0:02:45.5]} 4... h6 {[%clk 0:02:56.2]} 5. g3 {[%clk 0:02:40.5]}
5... d5 {[%clk 0:02:56.2]} 6. Bg2 {[%clk 0:02:33]} 6... Nc6 {[%clk 0:02:55.7]}
7. Nf3 {[%clk 0:02:31.5]} 7... Bg4 {[%clk 0:02:56]} 8. c4 {[%clk 0:02:25.9]}
8... d4 {[%clk 0:02:41.3]} 9. d3 {[%clk 0:02:23.3]} 9... Bxh5 {[%clk 0:02:40.7]}
10. Nbd2 {[%clk 0:02:11.3]} 10... Bg6 {[%clk 0:02:31.6]} 11. bxa4 {[%clk
0:02:03.1]} 11... Nd7 {[%clk 0:02:23.3]} 12. Rb1 {[%clk 0:02:02.5]} 12... Ra7
{[%clk 0:02:22.3]} 13. c5 {[%clk 0:02:00.3]} 13... e5 {[%clk 0:02:06.6]} 14. Nh4
{[%clk 0:01:55.7]} 14... Bh7 {[%clk 0:01:51.8]} 15. Nc4 {[%clk 0:01:42.5]} 15...
Be7 {[%clk 0:01:42.9]} 16. Rxb7 {[%clk 0:01:31.8]} 16... Rxb7 {[%clk 0:01:11.8]}
17. Bxc6 {[%clk 0:01:30]} 17... Qb8 {[%clk 0:01:08.3]} 18. Nxe5 {[%clk 0:01:29]}
18... Rb1 {[%clk 0:01:04.3]} 19. Bc1 {[%clk 0:01:28.6]} 19... Qb4+ {[%clk
0:01:00.5]} 20. Kf1 {[%clk 0:01:28.5]} 20... Qxc5 {[%clk 0:01:00.8]} 21. Bxd7+
{[%clk 0:01:25.5]} 21... Kd8 {[%clk 0:00:55.8]} 22. Kg2 {[%clk 0:01:15.7]} 22...
Qxe5 {[%clk 0:00:52.8]} 23. Nf3 {[%clk 0:01:14.2]} 23... Qd5 {[%clk 0:00:51]}
24. Bb5 {[%clk 0:01:10.5]} 24... g5 {[%clk 0:00:40]} 25. Qc2 {[%clk 0:00:56.6]}
25... Ra1 {[%clk 0:00:30]} 26. e4 {[%clk 0:00:51.3]} 26... dxe3 {[%clk
0:00:28.3]} 27. Qb2 {[%clk 0:00:43.7]} 27... Rg8 {[%clk 0:00:20.6]} 28. Qxa1
{[%clk 0:00:40]} 28... g4 {[%clk 0:00:20.5]} 29. Bxe3 {[%clk 0:00:34.5]} 29...
gxf3+ {[%clk 0:00:16.5]} 30. Kg1 {[%clk 0:00:34.7]} 30... Qd6 {[%clk 0:00:06.3]}
31. Qd4 {[%clk 0:00:34.1]} 31... Rg6 {[%clk 0:00:03.5]} 32. Qxd6+ {[%clk
0:00:31.2]} 32... Rxd6 {[%clk 0:00:04.4]} 33. Rh5 {[%clk 0:00:30.3]} 33... Bf8
{[%clk 0:00:04]} 34. Bc5 {[%clk 0:00:28.3]} 34... Re6 {[%clk 0:00:01.7]} 35.
Bxf8 {[%clk 0:00:28.7]} 35... Re1+ {[%clk 0:00:01.9]} 36. Kh2 {[%clk 0:00:28.9]}
36... Re2 {[%clk 0:00:02.8]} 37. Rxh6 {[%clk 0:00:27.9]} 37... Rxf2+ {[%clk
0:00:02.8]} 38. Kh3 {[%clk 0:00:28.2]} 38... Bg6 {[%clk 0:00:01.9]} 39. Bc5
{[%clk 0:00:25.4]} 39... Rf1 {[%clk 0:00:02.4]} 40. Rh8# {[%clk 0:00:25.1]} 1-0

[Event "Early-Titled-Tuesday-Blitz-March-19-2024"]
[Site "Chess.com"]
[Date "2024.03.19"]
[Round "4"]
[White "Rutvij09"]
[Black "vasblesk"]
[Result "0-1"]
[WhiteElo "2515"]
[BlackElo "2780"]
[TimeControl "180+1"]
[EndTime "8:39:47 PDT"]
[Termination "vasblesk won by resignation"]

1. e4 {[%clk 0:03:00.9]} 1... e5 {[%clk 0:02:58.9]} 2. Nf3 {[%clk 0:03:00.5]}
2... Nf6 {[%clk 0:02:59.2]} 3. Nxe5 {[%clk 0:02:58.2]} 3... d6 {[%clk
0:02:58.9]} 4. Nf3 {[%clk 0:02:58.7]} 4... Nxe4 {[%clk 0:02:59.2]} 5. Nc3 {[%clk
0:02:59.2]} 5... Nxc3 {[%clk 0:02:58.9]} 6. dxc3 {[%clk 0:03:00.1]} 6... Be7
{[%clk 0:02:59]} 7. Be3 {[%clk 0:03:00.3]} 7... Nc6 {[%clk 0:02:58.8]} 8. Qd2
{[%clk 0:03:00.7]} 8... Be6 {[%clk 0:02:58.9]} 9. a3 {[%clk 0:02:59.3]} 9... Qd7
{[%clk 0:02:57.2]} 10. O-O-O {[%clk 0:02:58.6]} 10... a6 {[%clk 0:02:56.4]} 11.
Ng5 {[%clk 0:02:55.1]} 11... Bxg5 {[%clk 0:02:53.9]} 12. Bxg5 {[%clk 0:02:56]}
12... f6 {[%clk 0:02:54.5]} 13. Bh4 {[%clk 0:02:45.5]} 13... O-O-O {[%clk
0:02:54.3]} 14. f4 {[%clk 0:02:44.7]} 14... Rhe8 {[%clk 0:02:50.9]} 15. Bf2
{[%clk 0:02:29.3]} 15... Bg4 {[%clk 0:02:47.3]} 16. Re1 {[%clk 0:02:29]} 16...
Rxe1+ {[%clk 0:02:46.2]} 17. Qxe1 {[%clk 0:02:29.9]} 17... Re8 {[%clk
0:02:46.6]} 18. Qd2 {[%clk 0:02:30.6]} 18... d5 {[%clk 0:02:43.6]} 19. Bd3
{[%clk 0:01:55.3]} 19... Bf5 {[%clk 0:02:34.1]} 20. Rd1 {[%clk 0:01:55.4]} 20...
Bxd3 {[%clk 0:01:59.9]} 21. Qxd3 {[%clk 0:01:54.8]} 21... Re4 {[%clk 0:02:00.3]}
22. g3 {[%clk 0:01:44.9]} 22... Ne7 {[%clk 0:01:58.7]} 23. Bc5 {[%clk
0:01:42.3]} 23... c6 {[%clk 0:01:55]} 24. Bb6 {[%clk 0:01:04.2]} 24... Nf5
{[%clk 0:01:48.2]} 25. c4 {[%clk 0:00:58.9]} 25... Rxc4 {[%clk 0:01:28.1]} 26.
g4 {[%clk 0:00:52.6]} 26... Nd6 {[%clk 0:01:24.2]} 27. Qxh7 {[%clk 0:00:52.7]}
27... Rxf4 {[%clk 0:01:21.6]} 28. Qg8+ {[%clk 0:00:43.6]} 28... Ne8 {[%clk
0:01:17.7]} 29. h3 {[%clk 0:00:29]} 29... Re4 {[%clk 0:01:08]} 30. Kb1 {[%clk
0:00:28.4]} 30... Qe6 {[%clk 0:01:04]} 31. Qh8 {[%clk 0:00:25.8]} 31... Kd7
{[%clk 0:01:01]} 32. Rd3 {[%clk 0:00:12.6]} 32... Ke7 {[%clk 0:00:41.8]} 33.
Bc5+ {[%clk 0:00:09.1]} 33... Kd7 {[%clk 0:00:38.8]} 34. Qf8 {[%clk 0:00:08.6]}
34... Re1+ {[%clk 0:00:34.6]} 35. Ka2 {[%clk 0:00:08.5]} 35... Re2 {[%clk
0:00:32.1]} 36. b3 {[%clk 0:00:07.4]} 36... Rxc2+ {[%clk 0:00:31.6]} 37. Kb1
{[%clk 0:00:07.5]} 37... Re2 {[%clk 0:00:28.6]} 0-1

[Event "Early-Titled-Tuesday-Blitz-March-19-2024"]
[Site "Chess.com"]
[Date "2024.03.19"]
[Round "4"]
[White "UK_23"]
[Black "ChessSwole"]
[Result "1-0"]
[WhiteElo "2390"]
[BlackElo "2699"]
[TimeControl "180+1"]
[EndTime "8:39:47 PDT"]
[Termination "UK_23 won by resignation"]

1. e4 {[%clk 0:02:58.4]} 1... c5 {[%clk 0:03:00.3]} 2. Nf3 {[%clk 0:02:58.3]}
2... e6 {[%clk 0:03:00.8]} 3. g3 {[%clk 0:02:58.1]} 3... Nc6 {[%clk 0:02:59]} 4.
Bg2 {[%clk 0:02:58.1]} 4... Nf6 {[%clk 0:02:58.7]} 5. Qe2 {[%clk 0:02:58.2]}
5... d6 {[%clk 0:02:56.6]} 6. O-O {[%clk 0:02:57.9]} 6... Be7 {[%clk 0:02:56.5]}
7. Rd1 {[%clk 0:02:58]} 7... Qb6 {[%clk 0:02:50.4]} 8. c3 {[%clk 0:02:54.2]}
8... e5 {[%clk 0:02:46.2]} 9. d4 {[%clk 0:02:48]} 9... cxd4 {[%clk 0:02:42.9]}
10. cxd4 {[%clk 0:02:48.1]} 10... Bg4 {[%clk 0:02:42.8]} 11. dxe5 {[%clk
0:02:30.9]} 11... dxe5 {[%clk 0:02:41.5]} 12. Be3 {[%clk 0:02:28.7]} 12... Qa5
{[%clk 0:02:28.6]} 13. Nc3 {[%clk 0:02:26.5]} 13... O-O {[%clk 0:02:26.9]} 14.
h3 {[%clk 0:02:26.4]} 14... Bxf3 {[%clk 0:02:24.6]} 15. Bxf3 {[%clk 0:02:25.5]}
15... Rfd8 {[%clk 0:02:23.8]} 16. Nd5 {[%clk 0:02:22.7]} 16... Rac8 {[%clk
0:02:00.6]} 17. a3 {[%clk 0:02:13.3]} 17... Qa4 {[%clk 0:01:40.1]} 18. b4 {[%clk
0:02:09]} 18... Kh8 {[%clk 0:00:59]} 19. Kg2 {[%clk 0:02:00.9]} 19... Re8 {[%clk
0:00:51]} 20. h4 {[%clk 0:01:56.8]} 20... h6 {[%clk 0:00:49.1]} 21. g4 {[%clk
0:01:54.6]} 21... Nxd5 {[%clk 0:00:46.7]} 22. exd5 {[%clk 0:01:54.2]} 22... Nd4
{[%clk 0:00:47.3]} 23. Bxd4 {[%clk 0:01:48.7]} 23... exd4 {[%clk 0:00:48.2]} 24.
Qd3 {[%clk 0:01:31.2]} 24... Rc3 {[%clk 0:00:40.7]} 25. Qxd4 {[%clk 0:01:29.5]}
25... Bf6 {[%clk 0:00:39.8]} 26. Qf4 {[%clk 0:01:18.6]} 26... Bxh4 {[%clk
0:00:34.9]} 27. d6 {[%clk 0:01:14.1]} 27... Qd7 {[%clk 0:00:28.4]} 28. Rh1
{[%clk 0:01:08.4]} 28... Bd8 {[%clk 0:00:19.7]} 29. Bd5 {[%clk 0:00:59.4]} 29...
Kg8 {[%clk 0:00:19.3]} 30. Rae1 {[%clk 0:00:50.9]} 30... Rf8 {[%clk 0:00:17.2]}
31. Re4 {[%clk 0:00:32.8]} 31... Bg5 {[%clk 0:00:15]} 32. Qf5 {[%clk 0:00:20]}
32... Qxd6 {[%clk 0:00:12]} 33. Re8 {[%clk 0:00:20.1]} 33... g6 {[%clk 0:00:06]}
34. Qxf7+ {[%clk 0:00:17.7]} 34... Kh8 {[%clk 0:00:06.5]} 35. Rxf8+ {[%clk
0:00:17]} 1-0

[Event "Early-Titled-Tuesday-Blitz-March-19-2024"]
[Site "Chess.com"]
[Date "2024.03.19"]
[Round "4"]
[White "Chessbard1972"]
[Black "valeriocarnicelli"]
[Result "0-1"]
[WhiteElo "2333"]
[BlackElo "2538"]
[TimeControl "180+1"]
[EndTime "8:39:48 PDT"]
[Termination "valeriocarnicelli won on time"]

1. d4 {[%clk 0:03:00.9]} 1... Nf6 {[%clk 0:02:59.8]} 2. c4 {[%clk 0:03:00.7]}
2... c5 {[%clk 0:03:00.3]} 3. d5 {[%clk 0:03:00.6]} 3... b5 {[%clk 0:03:00.9]}
4. cxb5 {[%clk 0:03:01.2]} 4... a6 {[%clk 0:03:01.6]} 5. b6 {[%clk 0:03:01.8]}
5... g6 {[%clk 0:03:00.1]} 6. Nc3 {[%clk 0:03:02.2]} 6... d6 {[%clk 0:03:00.3]}
7. Nf3 {[%clk 0:03:03.1]} 7... Nbd7 {[%clk 0:03:00.4]} 8. Nd2 {[%clk 0:03:03.6]}
8... Bg7 {[%clk 0:02:59.7]} 9. e4 {[%clk 0:03:02.2]} 9... O-O {[%clk 0:02:58.8]}
10. Be2 {[%clk 0:03:02.6]} 10... Nxb6 {[%clk 0:02:58.7]} 11. a4 {[%clk
0:03:01.7]} 11... a5 {[%clk 0:02:54.1]} 12. O-O {[%clk 0:02:58.8]} 12... Ne8
{[%clk 0:02:52.3]} 13. Bb5 {[%clk 0:02:57.6]} 13... Nc7 {[%clk 0:02:51.8]} 14.
Bc6 {[%clk 0:02:57.5]} 14... Rb8 {[%clk 0:02:52.3]} 15. Re1 {[%clk 0:02:54.4]}
15... Na6 {[%clk 0:02:50.6]} 16. Nf3 {[%clk 0:02:48.5]} 16... Nb4 {[%clk
0:02:50.5]} 17. Bb5 {[%clk 0:02:46.9]} 17... Bg4 {[%clk 0:02:45.6]} 18. Be2
{[%clk 0:02:41.7]} 18... Bxf3 {[%clk 0:02:42.3]} 19. Bxf3 {[%clk 0:02:40.8]}
19... Nc4 {[%clk 0:02:42.7]} 20. Be2 {[%clk 0:02:38.2]} 20... Ne5 {[%clk
0:02:38.9]} 21. f4 {[%clk 0:02:34.2]} 21... Nd7 {[%clk 0:02:39.1]} 22. Bg4
{[%clk 0:02:26.7]} 22... Nb6 {[%clk 0:02:22.4]} 23. Be2 {[%clk 0:02:21]} 23...
c4 {[%clk 0:02:22]} 24. Be3 {[%clk 0:02:17.6]} 24... Qd7 {[%clk 0:02:15.4]} 25.
Qd2 {[%clk 0:02:08]} 25... Rfc8 {[%clk 0:02:14.3]} 26. Rec1 {[%clk 0:01:54.5]}
26... Nd3 {[%clk 0:02:11.4]} 27. Bxd3 {[%clk 0:01:35.4]} 27... cxd3 {[%clk
0:02:12.3]} 28. Qxd3 {[%clk 0:01:34.3]} 28... Nc4 {[%clk 0:02:11.6]} 29. Bd4
{[%clk 0:01:19.3]} 29... Nxb2 {[%clk 0:02:09.1]} 30. Qe3 {[%clk 0:01:17]} 30...
Nc4 {[%clk 0:02:06.8]} 31. Qf2 {[%clk 0:01:15.4]} 31... Rb2 {[%clk 0:02:02.9]}
32. Ne2 {[%clk 0:01:00.7]} 32... Rxe2 {[%clk 0:02:01]} 33. Qxe2 {[%clk
0:00:58.2]} 33... Bxd4+ {[%clk 0:02:01.1]} 34. Kh1 {[%clk 0:00:57.7]} 34... Bxa1
{[%clk 0:02:01.3]} 35. Rxa1 {[%clk 0:00:55.4]} 35... Qa7 {[%clk 0:02:00.1]} 36.
Rc1 {[%clk 0:00:54]} 36... Qd4 {[%clk 0:01:59.9]} 37. Rd1 {[%clk 0:00:50.8]}
37... Qe3 {[%clk 0:01:59.7]} 38. Qg4 {[%clk 0:00:46.6]} 38... Rb8 {[%clk
0:01:48.3]} 39. f5 {[%clk 0:00:43.6]} 39... Ne5 {[%clk 0:01:46.7]} 40. Qh4
{[%clk 0:00:43]} 40... Qd3 {[%clk 0:01:39.8]} 41. Rg1 {[%clk 0:00:36.4]} 41...
Rb1 {[%clk 0:01:38]} 42. h3 {[%clk 0:00:34.5]} 42... Rxg1+ {[%clk 0:01:35.6]}
43. Kxg1 {[%clk 0:00:34.6]} 43... Qe3+ {[%clk 0:01:26]} 44. Kh2 {[%clk
0:00:31.9]} 44... g5 {[%clk 0:01:25.6]} 45. Qh6 {[%clk 0:00:29.4]} 45... Qf4+
{[%clk 0:01:14.5]} 46. Kh1 {[%clk 0:00:15.1]} 46... Qg3 {[%clk 0:01:12.1]} 47.
f6 {[%clk 0:00:13.7]} 47... exf6 {[%clk 0:01:08]} 48. Qxf6 {[%clk 0:00:13.9]}
48... Ng6 {[%clk 0:00:58.4]} 49. Qd4 {[%clk 0:00:05.4]} 49... Nf4 {[%clk
0:00:56.9]} 50. Qd2 {[%clk 0:00:03.2]} 50... f6 {[%clk 0:00:51.6]} 0-1